Cogmind - Beta 13 @@@ ROGUE MODE // 2024.03.31 @ 22:15:35 Player: evergreen Result: Destroyed self with Mini Grenade Launcher Performance ------------- Evolutions (1) 500 Regions Visited (2) 400 Robots Destroyed (11) 55 Value Destroyed (284) 284 Prototype IDs (1) 20 Alien Tech Used (0) 0 Bonus (0) 0 TOTAL SCORE: 1259 Bonus ------- None Cogmind --------- Core Integrity 0/400 Matter 198/300 Energy 25/100 System Corruption 0% Temperature Cool (6) Movement Core (50) Location -9/Materials Parts ------- > --- POWER (2) -------- (None) > --- PROPULSION (2) --- (None) > --- UTILITY (3) ------ Signal Interpreter Power Shielding > --- WEAPON (2) ------- Mini Grenade Launcher > --- INVENTORY (5) ---- Ion Engine Huge Storage Unit Improved EM Shotgun Assault Rifle Peak State ------------ > --- POWER ------------ Ion Engine > --- PROPULSION ------- Flight Unit Flight Unit > --- UTILITY ---------- Huge Storage Unit Signal Interpreter Power Shielding > --- WEAPON ----------- Improved EM Shotgun Light Cannon > --- INVENTORY -------- Heat Sink Assault Rifle [Rating: 10] Favorites ----------- Power Ion Engine Engine Ion Engine Propulsion Flight Unit Wheel Wheel Flight Unit Flight Unit Utility Power Shielding Device Shield Generator Storage Huge Storage Unit Processor Signal Interpreter Protection Power Shielding Weapon Light Cannon Energy Gun Improved EM Shotgun Ballistic Gun Assault Rifle Ballistic Cannon Light Cannon Launcher Mini Grenade Launcher Build | -11 -10 -9 ------- Run | Yrd Mat Mat Slots Evolved 2 | . . 2 Power 1 | . . 1 Propulsion . | . . . Utility 1 | . . 1 Weapon . | . . . Parts Attached 21 | 5 11 5 Power 4 | 1 2 1 Engine 4 | 1 2 1 Core . | . . . Reactor . | . . . Propulsion 4 | 2 2 . Treads . | . . . Leg . | . . . Wheel 2 | 2 . . Hover . | . . . Flight 2 | . 2 . Utility 6 | . 4 2 Device 2 | . 1 1 Storage 1 | . . 1 Processor 2 | . 2 . Hackware . | . . . Protection 1 | . 1 . Artifact . | . . . Weapon 7 | 2 3 2 Energy Gun 3 | 1 1 1 Energy Cannon . | . . . Ballistic Gun 2 | 1 1 . Ballistic Cannon 1 | . 1 . Launcher 1 | . . 1 Special Weapon . | . . . Impact Weapon . | . . . Slashing Weapon . | . . . Piercing Weapon . | . . . Special Melee Weapon . | . . . Unidentified Prototypes 1 | . 1 . Parts Lost 5 | . 2 3 Power 1 | . 1 . Propulsion 2 | . . 2 Utility 1 | . . 1 Weapon 1 | . 1 . Highest Loss Streak 2 | . 2 1 To Critical Strikes . | . . . Average Slot Usage (%) 71 | . 77 65 Engine 5 | . 3 7 Wheel 6 | . 12 . Flight 16 | . 15 16 Storage 3 | . . 7 Processor 12 | . 13 11 Protection 7 | . 3 11 Energy Gun 7 | . 12 1 Ballistic Gun 1 | . 3 . Ballistic Cannon 10 | . 11 8 Naked Turns . | . . . Heaviest Build 89 | 7 8 89 Greatest Support 20 | 20 20 8 Greatest Overweight (x) 20 | . . 20 Average Overweight (x) . | . . 1 Largest Inventory Capacity 25 | 5 5 25 Average Capacity 10 | 5 5 18 Most Carried 5 | 4 5 5 Average Carried 3 | 1 3 3 Final Capacity 5 | 5 5 5 Final Carried 4 | 4 3 4 Class Distribution -------------------- 70% | Mutant 29% | Scavenger-Mutant Dominant Class ---------------- Mutant | -10/Materials Scavenger-Mutant | -9/Materials Resources | -11 -10 -9 ----------- Run | Yrd Mat Mat Matter Collected 421 | 221 200 . Remotely . | . . . Salvage Created 293 | 37 233 23 Parts 19 | 4 13 2 Haulers Intercepted . | . . . Recyclers Shooed . | . . . Parts Field Recycled . | . . . Retrieved Matter . | . . . Parts Self-Destructed . | . . . Prevented . | . . . Kills | -11 -10 -9 ------- Run | Yrd Mat Mat Combat Hostiles Destroyed 8 | 1 6 1 Guns 3 | 1 2 . Cannons 4 | . 4 . AOE 1 | . . 1 Classes Destroyed 3 | 1 2 . Watcher 3 | . 3 . Swarmer 3 | . 3 . Grunt 5 | 1 3 1 Best Kill Streak 5 | 1 5 1 Combat Bots Only 3 | 1 3 1 Max Kills in Single Turn 1 | 1 1 1 Gunslinging . | . . . Exploded 1 | . . 1 Melee . | . . . Uniques/NPCs Destroyed . | . . . Combat | -11 -10 -9 -------- Run | Yrd Mat Mat Hostile Shots Fired 104 | 1 27 76 Missed 34 | . 9 25 Damage Taken 906 | 12 210 684 Core 463 | . 42 421 Absorbed by Shields 29 | . . 29 Core Remaining (%) 91 | 100 83 . Volleys Fired 32 | 1 23 8 Largest 2 | 2 2 1 Hottest 80 | 60 80 35 Shots Fired 54 | 2 44 8 Gun 23 | 2 21 . Cannon 29 | . 23 6 Launcher 2 | . . 2 Special . | . . . Kinetic 31 | 1 24 6 Thermal . | . . . Explosive 2 | . . 2 Electromagnetic 21 | 1 20 . Robot Hit Streak 9 | 1 8 9 Robot Miss Streak 4 | 1 4 2 Penetration Max . | . . . Secondary Targets . | . . . Shots Hit Robots 28 | 1 23 4 Core Hits 14 | 1 12 1 Critical Kills . | . . . Critical Parts Destroyed . | . . . Critical Strikes . | . . . Melee Attacks . | . . . Impact . | . . . Slashing . | . . . Piercing . | . . . Sneak Attacks . | . . . Combat Hostiles . | . . . Follow-up Attacks . | . . . Damage Inflicted 850 | 15 403 432 Guns 220 | 15 205 . Cannons 249 | . 198 51 Explosions 380 | . . 380 Melee . | . . . Ramming 1 | . . 1 Kinetic 276 | 15 210 51 Thermal . | . . . Explosive 380 | . . 380 Electromagnetic 193 | . 193 . Impact . | . . . Slashing . | . . . Piercing . | . . . Highest Corruption . | . . . Average Corruption . | . . . Corruption Purged . | . . . Corruption Blocked . | . . . Overload Shots . | . . . Overflow Damage . | . . . Projectiles . | . . . Explosions . | . . . Melee . | . . . Knockbacks 2 | . 2 . Impact . | . . . Kinetic 2 | . 2 . Secondary . | . . . Self-Inflicted Damage 29 | . . 29 Shots 1 | . . 1 Rammed 1 | . . 1 Targets Rammed 1 | . . 1 Kicked . | . . . Crushed . | . . . Highest Temperature 147 | . 147 17 Average Temperature 53 | . 54 12 Received Heat Transfer 357 | 6 90 261 Siege Activations . | . . . Robots Corrupted . | . . . Combat Hostiles . | . . . Parts Fried 1 | . 1 . Impact Corruptions . | . . . Robots Melted . | . . . Combat Hostiles . | . . . Parts Melted . | . . . Heat Transferred . | . . . Parts Sabotaged . | . . . Parts Stolen . | . . . Parts Stripped . | . . . Power Chain Reactions . | . . . Alert | -11 -10 -9 ------- Run | Yrd Mat Mat Peak Influence 216 | 20 216 137 Initial 91 | . 13 91 Average 93 | 3 114 95 Maximum Alert Level 1 | . 1 . Low Security (%) 92 | 100 83 100 Level 1 7 | . 16 . Level 2 . | . . . Level 3 . | . . . Level 4 . | . . . Level 5 . | . . . High Security . | . . . Max Security . | . . . Squads Dispatched 2 | . 1 1 Investigation 1 | . 1 . Extermination . | . . . Reinforcement 1 | . . 1 Assault . | . . . Garrison . | . . . Intercept . | . . . Searches Triggered . | . . . Construction Impeded . | . . . Haulers Reinforced . | . . . Active Scanning Responses . | . . . Cargo Convoy Interrupts . | . . . Stealth | -11 -10 -9 --------- Run | Yrd Mat Mat Distress Signals 1 | . . 1 Communications Jammed . | . . . Distress Signals . | . . . Times Spotted 19 | 1 8 10 Peak Tracking Total 10 | 1 3 10 Tactical Retreats . | . . . Traps | -11 -10 -9 ------- Run | Yrd Mat Mat Traps Triggered 1 | . 1 . Indirectly . | . . . Trap Hack Attempts . | . . . Triggered . | . . . Disarmed . | . . . Reprogrammed . | . . . Reused . | . . . Traps Extracted . | . . . Installed . | . . . Triggered . | . . . Machines | -11 -10 -9 ---------- Run | Yrd Mat Mat Machines Disabled 1 | . . 1 Max in Single Turn 1 | . . 1 Machines Repaired . | . . . Machines Dismantled . | . . . Machines Sabotaged . | . . . Overloaded Fab Kills . | . . . Hacking | -11 -10 -9 --------- Run | Yrd Mat Mat Machines Accessed 2 | . 1 1 Terminals 2 | . 1 1 Fabricators . | . . . Repair Stations . | . . . Recycling Units . | . . . Scanalyzers . | . . . Garrison Access . | . . . Total Hacks 6 | . 2 4 Successful 5 | . 2 3 Failed 1 | . . 1 Catastrophic 1 | . . 1 Database Lockouts . | . . . Manual . | . . . Terminals 6 | . 2 4 Fabricators . | . . . Repair Stations . | . . . Recycling Units . | . . . Scanalyzers . | . . . Garrison Access . | . . . Terminal Hacks 5 | . 2 3 Alert Level 3 | . 1 2 Assault Status 2 | . 1 1 Fabricator Hacks . | . . . Repair Station Hacks . | . . . Recycling Unit Hacks . | . . . Scanalyzer . | . . . Garrison Access Hacks . | . . . Unauthorized Hacks . | . . . Terminals . | . . . Fabricators . | . . . Repair Stations . | . . . Recycling Units . | . . . Scanalyzers . | . . . Garrison Access . | . . . Data Cores Recovered . | . . . Used . | . . . Hacking Detections 1 | . . 1 Full Trace Events 1 | . . 1 Feedback Events . | . . . Feedback Blocked . | . . . Robot Schematics Acquired . | . . . Robots Built . | . . . Authchips . | . . . Time . | . . . Total Robot Build Rating . | . . . Part Schematics Acquired . | . . . Parts Built . | . . . Authchips . | . . . Time . | . . . Total Part Build Rating . | . . . Parts Repaired . | . . . Time . | . . . Parts Recycled . | . . . Recycled Matter . | . . . Retrieved Matter . | . . . Retrieved Components . | . . . Parts Scanalyzed . | . . . Part Schematics Acquired . | . . . Parts Damaged . | . . . Bothacking | -11 -10 -9 ------------ Run | Yrd Mat Mat Used RIF Installer . | . . . Robots Hacked . | . . . Non-combat . | . . . Combat . | . . . Robot Hacks Applied . | . . . Relay Couplers Released . | . . . Fabnet Peak Effective % . | . . . Robots Rewired . | . . . Allies Hacked . | . . . Hacks Repelled . | . . . Allies | -11 -10 -9 -------- Run | Yrd Mat Mat Total Allies . | . . . Largest Group . | . . . Highest-Rated Group . | . . . Highest-Rated Ally . | . . . Total Orders . | . . . Ally Attacks . | . . . Total Damage . | . . . Kills . | . . . Allies Corrupted . | . . . Allies Melted . | . . . Intel | -11 -10 -9 ------- Run | Yrd Mat Mat Robot Analysis Total . | . . . Derelict Logs Recovered . | . . . Drone Launches . | . . . Drone Recoveries . | . . . Exploration | -11 -10 -9 ------------- Run | Yrd Mat Mat Turns Passed 627 | 72 293 262 Spaces Moved 600 | 77 411 112 Core 87 | 20 . 67 Treads . | . . . Legs . | . . . Wheels 152 | 57 95 . Hover . | . . . Flight 361 | . 316 45 Fastest Speed 37 | 50 37 37 Average Speed 78 | 72 46 201 Slowest Speed 1640 | 80 80 1640 Overloaded Moves . | . . . Propulsion Burnouts . | . . . Robots Hopped 2 | . 2 . Cave-ins Triggered . | . . . Exploration Rate (%) 29 | 6 64 19 Regions Visited 2 Branch Regions . Pre-discovered Areas . | . . . Known Exits Taken 1 | . 1 . Unknown Exits Taken 1 | 1 . . Scrap Searched . | . . . Spaces Dug . | . . . Terrain Destroyed . | . . . Melee . | . . . Projectile . | . . . AOE . | . . . Terrain Rammed . | . . . Walls Destroyed . | . . . Machines Disabled . | . . . Actions | -11 -10 -9 --------- Run | Yrd Mat Mat Total 701 | 91 465 145 Wait 19 | . 9 10 Move 594 | 76 406 112 Hop 2 | . 2 . Pick Up 19 | 9 7 3 Fast Attach . | . . . Attach 16 | 5 6 5 Detach 7 | . 3 4 Swap 5 | . 5 . Drop 6 | . 4 2 Fire 32 | 1 23 8 Melee . | . . . Ram 1 | . . 1 Kick . | . . . Crush . | . . . Escape Stasis . | . . . Rewire . | . . . Trap . | . . . Miscellaneous . | . . . Route ------- -11/Scrapyard -10/Materials (discovered 4 exits: *Mat x3 / [*Min]) -9/Materials (discovered 1 exit: *Min) History --------- Turn | Location | Event 2 | -11/Scrapyard | Met Revision 17 58 | -11/Scrapyard | Discovered new exit (range 8) 73 | -11/Scrapyard | Entered Materials 124 | -10/Materials | Discovered new exit (range 14) 135 | -10/Materials | Discovered new exit (range 3) 308 | -10/Materials | Build established: Mutant 333 | -10/Materials | Discovered new exit (range 10) 339 | -10/Materials | Identified exit to Materials 365 | -10/Materials | Discovered exit to Materials (range 3) 366 | -10/Materials | Entered another Materials area 366 | -9/Materials | Evolved 2 slots: Power x1, Utility x1 366 | -9/Materials | Discovered new exit (range 7) 435 | -9/Materials | Identified exit to Mines 619 | -9/Materials | Core integrity fell below 50% 624 | -9/Materials | Core integrity fell below 20% 628 | -9/Materials | Destroyed self with Mini Grenade Launcher Last Messages --------------- Current Alert Level: Low Security >>Alert(Check) Current Alert Level: Low Security >>Enumerate(Assaults) Retrieving latest reported positions... No active assault squads found. Acquired Mni. Grenade Launcher. ALERT: Hostiles spotted, dispatching reinforcements to Terminal M002. [Achievement: Uninvited Guest] Slammed into R-06 Scavenger. Ramming works as a last resort when unarmed or blocked, but can have serious negative consequences. Shield Generator destroyed. Critical hit (Burn: +37). A-02 Transporter destroyed. Electrolysis Chamber disabled. Y-45 Defender destroyed. G-47 Trooper destroyed. Map ----- +----------------------------------------------------+ | ?????????????????????????????????????????????????? | | ?????????????????????????????????????????????????? | | ???????????????#?????????????????????????????????? | | ????????????? ????????????? ? ??????????????? | | ????????????? ??????????? ????????????? | | ???????????? ??????????? ????????????? | | ???????????? ?????????? #?????????????? | | ??????????? ?????????? #?????????????? | | ??????????? ????????? #?????????????? | | ??????????? ######### #?????????????? | | ?????????? #?????????????? | | ?????????? ##????????????? | | ????????? **] ""#???????????? | | ??????????# w *]] r Y"#???????????? | | ??????????# * """ ""????????????? | | ???????????????# """ #?????????????? | | ???????????????#^ u """ u#??????????#### | | ???????????????# #??????????# | | ???????????????# #??????????# | | ???????????????# g "" #??????????# | | ???????????????# g "" #??????????# | | ???????????????# [[g gT" ############ | | ???????????##### [[ ag%= "" =*= + | | ?????????? a [[ "" ![*%* ####### | | ?????????? *%=* #?????# | | ?????????? @ =###+##?????#### | | ?????????????###+######"T"##########? ????????# | | ??????????????????????#####?????????? ????????# | | ????????????????????????????????????[[[ ???????# | | ????????????????????????????????????[[ ???????# | | ???????????????????????????????????#[[ ??????# | | ???????????????????????????????????# ??????## | | ???????????????????????????????????# ??????# | | ???????????????????????????????????# ??????# | | ???????????????????????????????????##### ###?????# | | ????????????????????????????????????????##???????# | | ?????????????????????????????????????????????????# | | ????????????????????????????????????????????????## | | ????????????????????????????????????????????????# | | ????????????????????????????????????????????????# | | ????????????????????????????????????????????????# | | ????????????????????????????????????????????????# | | ????????????????????????????????????????????????# | | ??????????????????????????????????????????????#### | | ??????????????????????????????????????????????# | | ??????????????????????????????????????????????# | | ??????????????????????????????????????????????# "" | | ??????????????????????????????????????????????# "" | | ??????????????????????????????????????????????# "" | | ??????????????????????????????????????????????# "" | +----------------------------------------------------+ Best States ------------- Heat Dissipation 28 Energy Generation 10 Energy Capacity 250 Matter Stores 277 Matter Capacity 300 Sight Range 16 Terrain Scan Density 10 Power Shielding 33 Evasion (%) 62 Targeting Accuracy 5 Item Schematics ----------------- None Robot Schematics ------------------ None Fabricated ------------ Nothing Alien Tech Used ----------------- None Achievements -------------- Risk Taker Uninvited Guest Challenges ------------ None Game ------ Seed TrapGyrokineticTerminator Manual? 0 Play Time 00:21:01 Cumulative 0.7 hours Start 2024.03.31 @ 21:55:20 End 2024.03.31 @ 22:15:35 Sessions 1 Manual Loads 0 Difficulty Rogue Special Mode None Game No. 2 Rogue 2 Adventurer 0 Explorer 0 Win Type - Total 0 Types 0/0/0/0/0/0/0/0/0 Lore% 0 Gallery% 2 Achievement% 1 Wizard Run 0 Options --------- Layout 1 ASCII 0 Keyboard 0 Movement Arrows Keybinds 0 Fullscreen 1 Font 32/SmallcapsGlow Map View 50x35 Zoom Use 0% Tactical HUD 0 Map Filters NONE Filters NONE Steam 1 RUN: c64e7e99-4bcf-479e-83f3-1e8fa1eb9808